bitfinex-derivatives/quotes_SOLF0:USTF0_20250319
["timestamp","ask_amount","ask_price","bid_price","bid_amount"]
[1742393403358,15.0684,132.73,132.59,64.9785623]
[1742393403559,60.052869,132.69,132.59,1.5566933]
[1742393403760,7.5399,132.63,132.59,1.50840938]
[1742393403963,60.052869,132.69,132.59,1.50840938]
[1742393404269,4.171,132.69,132.59,1.50840938]
[1742393404463,4.171,132.69,132.63,0.04923632]
[1742393404856,7.539,132.64,132.63,3.632e-05]
[1742393405460,15.7144,132.64,132.59,4.57e-05]
[1742393405664,7.5413,132.6,132.59,4.57e-05]
[1742393406461,7.5468,132.51,132.49,4.2274]
[1742393406768,55.881869,132.58,132.5,62.7]
[1742393407260,55.881869,132.58,132.45,374.7345]
[1742393407261,55.93110532,132.55,132.45,4.2274]
[1742393407566,7.5475,132.49,132.48,0.20939613]
[1742393407763,55.881869,132.49,132.38,8.0788]
[1742393407965,55.881869,132.51,132.39,62.38]
[1742393407966,55.881869,132.46,132.39,62.38]
[1742393408162,55.881869,132.46,132.34,55.881869]
[1742393408163,62.38,132.46,132.16,362.95989502]
[1742393408464,0.05475086,132.32,132.3,55.9325184]
[1742393408670,55.881869,132.42,132.3,55.9325184]
[1742393408671,7.5553,132.36,132.31,66.5234]
[1742393408863,55.881869,132.42,132.32,7.5569]
[1742393409064,55.881869,132.43,132.31,66.5234]
[1742393409366,55.881869,132.43,132.33,55.881869]
[1742393409761,0.04684304,132.39,132.37,0.05180713]
[1742393410066,80.62268115,132.38,132.31,66.2634]
[1742393410264,7.5548,132.37,132.31,66.2634]
[1742393410459,80.62268115,132.38,132.31,66.2834]
[1742393411360,0.0570483,132.36,132.33,0.05289879]
[1742393411867,55.881869,132.34,132.27,61.84]
[1742393412066,31.12817412,132.35,132.27,61.84]
[1742393412262,38.68387412,132.35,132.27,61.84]
[1742393412464,31.12817412,132.35,132.27,61.84]
[1742393412865,7.5571,132.33,132.27,61.84]
[1742393413061,0.05204736,132.32,132.3,0.05311711]
[1742393413461,7.5578,132.31,132.3,0.05311711]
[1742393413665,0.05204736,132.32,132.3,0.05311711]
[1742393414964,7.60964736,132.32,132.3,0.05311711]
[1742393415265,119.78891869,132.31,132.24,4.0811]
[1742393415467,7.559,132.29,132.24,4.0811]
[1742393415769,119.78891869,132.31,132.24,1.51240169]
[1742393415965,55.881869,132.3,132.24,1.51240169]
[1742393416358,0.04897035,132.28,132.26,0.05239923]
[1742393417360,0.04897035,132.28,132.27,1.51205866]
[1742393417565,43.39472764,132.31,132.27,1.51205866]
[1742393418572,99.27659664,132.31,132.27,1.51205866]
[1742393418873,0.0580451,132.3,132.27,1.51205866]
[1742393419264,0.0580451,132.3,132.29,7.5589]
[1742393419464,43.39472764,132.31,132.28,55.881869]
[1742393419667,43.39472764,132.31,132.27,273.75105866]
[1742393419668,4.223,132.4,132.3,55.881869]
[1742393419870,4.223,132.4,132.35,7.5555]
[1742393420069,4.223,132.4,132.36,60.44]
[1742393420267,8.0798,132.43,132.36,60.44]
[1742393420574,3.989,132.46,132.36,116.321869]
[1742393420869,8.0798,132.49,132.38,55.93021777]
[1742393421064,8.0798,132.49,132.36,116.321869]
[1742393421571,8.0798,132.49,132.39,55.881869]
[1742393421769,8.0798,132.49,132.44,7.5498]
[1742393421969,34.87935872,132.5,132.45,60.4]
[1742393422173,0.0465584,132.48,132.46,60.3]
[1742393422364,59.712569,132.54,132.47,7.5485]
[1742393422568,59.712569,132.54,132.46,60.3]
[1742393422971,3.8307,132.54,132.5,7.5466]
[1742393423274,55.881869,132.61,132.51,60.42]
[1742393423478,55.881869,132.61,132.51,60.4684303]
[1742393423671,55.881869,132.63,132.51,60.42]
[1742393423871,55.881869,132.63,132.55,0.05607252]
[1742393424068,55.881869,132.63,132.56,60.16]
[1742393424374,12.0811,132.64,132.58,0.05687007]
[1742393424772,55.881869,132.67,132.58,0.05687007]
[1742393425174,7.538,132.66,132.57,55.881869]
[1742393425477,55.881869,132.67,132.61,0.05154891]
[1742393425680,55.881869,132.67,132.61,59.83154891]
[1742393426381,11.9991,132.71,132.61,59.83154891]
[1742393426580,27.9409345,132.79,132.64,55.881869]
[1742393426581,55.881869,132.75,132.64,55.881869]
[1742393426780,55.881869,132.77,132.66,55.881869]
[1742393426973,55.881869,132.77,132.68,0.05321798]
[1742393427175,55.881869,132.77,132.69,59.4]
[1742393427575,55.881869,132.75,132.72,0.05582844]
[1742393427777,55.881869,132.73,132.62,59.937669]
[1742393427978,55.881869,132.73,132.63,60.66795445]
[1742393428278,55.881869,132.71,132.64,1.50784077]
[1742393428583,55.881869,132.69,132.64,1.50784077]
[1742393428879,55.881869,132.71,132.64,1.50784077]
[1742393429081,0.05290457,132.68,132.65,0.05013834]
[1742393430783,7.59010457,132.68,132.65,0.05013834]
[1742393430978,0.05290457,132.68,132.65,0.05013834]
[1742393432381,55.881869,132.67,132.64,1.50784077]
[1742393432581,7.5384,132.65,132.64,1.50784077]
[1742393432776,55.881869,132.65,132.59,57.94]
[1742393432978,7.5401,132.63,132.59,57.94]
[1742393433482,0.05779022,132.62,132.6,0.05783674]
[1742393433685,7.59839022,132.62,132.6,0.05783674]
[1742393433879,0.05779022,132.62,132.6,0.05783674]
[1742393435986,7.5407,132.61,132.6,0.05783674]
[1742393436977,7.59799022,132.62,132.6,0.05783674]
[1742393437182,0.05779022,132.62,132.6,0.05783674]
[1742393438079,0.05779022,132.62,132.61,56.82]
[1742393439582,7.5391,132.64,132.61,56.82]
[1742393439777,55.881869,132.68,132.57,260.2]
[1742393440079,55.881869,132.62,132.55,56.42]
[1742393440785,0.04817656,132.6,132.57,0.05576592]
[1742393442184,55.881869,132.59,132.57,0.05576592]
[1742393442384,55.881869,132.59,132.53,55.94]
[1742393442581,63.424069,132.59,132.53,55.94]
[1742393442983,55.881869,132.59,132.53,55.94]
[1742393443680,0.05651295,132.57,132.55,0.05000436]
[1742393444377,55.93838195,132.57,132.55,0.05000436]
[1742393444576,55.93838195,132.57,132.47,3.8907]
[1742393444774,3.8876,132.56,132.48,55.4]
[1742393445685,0.04970575,132.53,132.51,0.05429278]
[1742393445879,0.04970575,132.53,132.52,55.16]
[1742393446780,0.04970575,132.53,132.51,0.05429278]
[1742393448091,0.04970575,132.53,132.51,1.56361283]
[1742393448284,0.04970575,132.53,132.52,9.05500615]
[1742393449089,3.8401,132.61,132.54,7.5444]
[1742393449291,3.8401,132.61,132.55,54.6]
[1742393449487,3.8401,132.61,132.55,62.1441]
[1742393449687,3.8401,132.61,132.55,54.6]
[1742393449883,55.881869,132.6,132.55,54.6]
[1742393450089,7.5429,132.58,132.55,54.6]
[1742393450289,0.05669367,132.59,132.56,0.05369681]
[1742393450792,7.543,132.57,132.56,0.05369681]
[1742393451085,7.5434,132.57,132.52,55.74920615]
[1742393451286,55.881869,132.6,132.52,55.74920615]
[1742393452085,0.05773261,132.57,132.55,0.05559127]
[1742393452887,7.5436,132.56,132.55,0.05559127]
[1742393453083,0.05773261,132.57,132.55,0.05559127]
[1742393453289,7.60103261,132.57,132.55,0.05559127]
[1742393453690,0.05773261,132.57,132.55,0.05559127]
[1742393454387,7.5436,132.56,132.55,0.05559127]
[1742393454587,0.05773261,132.57,132.52,1.50920615]
[1742393454793,55.881869,132.56,132.52,1.50920615]
[1742393454986,55.881869,132.54,132.47,53.54]
[1742393455192,55.881869,132.54,132.44,260.22]
[1742393455595,264.4216,132.55,132.42,63.858969]
[1742393455596,0.05330628,132.5,132.48,0.0480896]
[1742393455894,0.05330628,132.5,132.39,260.26]
[1742393455895,7.5491,132.47,132.43,60.9706]
[1742393456189,55.881869,132.48,132.43,53.42]
[1742393456390,7.5482,132.48,132.45,7.5495]
[1742393456595,260.3,132.49,132.43,53.42]
[1742393456898,7.5487,132.47,132.44,7.5502]
[1742393457097,0.05462721,132.47,132.45,0.04916586]
[1742393457596,0.05462721,132.47,132.38,3.8156]
[1742393457791,260.3,132.49,132.39,53.1]
[1742393457991,313.34,132.49,132.39,53.1]
[1742393458192,55.881869,132.46,132.35,55.881869]
[1742393458492,55.881869,132.46,132.34,260.3]
[1742393458493,55.881869,132.44,132.38,7.5536]
[1742393458697,0.05150144,132.42,132.39,0.0555608]
[1742393459197,7.5522,132.41,132.39,0.0555608]
[1742393459394,0.05150144,132.42,132.39,0.0555608]
[1742393459785,0.05150144,132.42,132.41,7.5521]
[1742393459987,0.05150144,132.42,132.4,52.66]
[1742393460193,7.60310144,132.42,132.4,52.66]
[1742393460494,0.05150144,132.42,132.4,52.66]
[1742393460997,0.05150144,132.42,132.41,7.5521]
[1742393461896,0.05150144,132.42,132.4,52.66]
[1742393462495,7.5521,132.41,132.4,52.66]
[1742393462693,0.05150144,132.42,132.4,52.66]
[1742393463488,7.5527,132.4,132.39,0.0555608]
[1742393463895,0.05150144,132.42,132.39,0.0555608]
[1742393464593,0.05150144,132.42,132.39,51.9155608]
[1742393464994,0.05150144,132.42,132.39,53.42624891]
[1742393465801,7.5527,132.4,132.39,53.42624891]
[1742393466602,7.5527,132.4,132.39,1.56624891]
[1742393466793,7.5542,132.38,132.3,62.0]
[1742393467000,55.881869,132.42,132.31,51.44]
[1742393467399,7.5552,132.36,132.32,51.36]
[1742393467701,4.2153,132.41,132.3,55.881869]
[1742393467902,7.5553,132.36,132.33,7.5562]
[1742393468104,0.05037166,132.37,132.34,0.04857103]
[1742393468300,0.05037166,132.37,132.34,7.60467103]
[1742393468499,0.05037166,132.37,132.35,51.14]
[1742393468900,0.05037166,132.37,132.36,7.555]
[1742393469206,0.05037166,132.37,132.35,51.14]
[1742393470107,7.555,132.36,132.35,51.14]
[1742393470706,0.05037166,132.37,132.34,0.04857103]
[1742393471209,55.881869,132.36,132.3,50.76]
[1742393471401,59.721969,132.36,132.29,50.76]
[1742393471807,59.721969,132.36,132.29,50.7]
[1742393472008,55.881869,132.34,132.29,50.7]
[1742393473910,272.2114,132.37,132.29,55.881869]
[1742393474108,264.6567,132.37,132.3,3.9967]
[1742393474303,264.6567,132.37,132.31,50.28]
[1742393474509,264.6567,132.37,132.31,57.8376]
[1742393474709,264.6567,132.37,132.31,50.28]
[1742393474909,7.5553,132.36,132.31,50.28]
[1742393475111,0.05069872,132.35,132.33,0.05553882]
[1742393475508,7.5561,132.34,132.33,0.05553882]
[1742393477817,7.5578,132.31,132.3,49.76]
[1742393478008,55.881869,132.35,132.27,49.62]
[1742393478217,7.5593,132.29,132.25,4.0376]
[1742393478414,55.881869,132.33,132.26,49.56]
[1742393478613,55.881869,132.35,132.26,49.56]
[1742393478814,7.5563,132.34,132.26,105.441869]
[1742393479121,0.05552609,132.32,132.31,7.5578]
[1742393479422,260.64,132.36,132.31,49.48]
[1742393479624,0.05234273,132.33,132.31,49.48]
[1742393479913,7.5572,132.32,132.31,49.48]
[1742393480121,0.05234273,132.33,132.3,0.05487782]
[1742393480515,7.5578,132.31,132.3,0.05487782]
[1742393481228,63.439669,132.31,132.3,7.782e-05]
[1742393481425,7.5578,132.31,132.3,7.782e-05]
[1742393481624,63.439669,132.31,132.3,7.782e-05]
[1742393482722,7.5618,132.24,132.23,49.14]
[1742393482919,55.881869,132.28,132.21,3.9119]
[1742393483113,55.881869,132.28,132.22,48.96]
[1742393483316,324.257569,132.3,132.23,48.96]
[1742393483720,260.66,132.3,132.23,48.96]
[1742393483917,0.050575,132.28,132.25,0.05766484]
[1742393484818,7.5607,132.26,132.25,0.05766484]
[1742393485019,0.050575,132.28,132.25,0.05766484]
[1742393485520,8.0749,132.35,132.25,0.05766484]
[1742393485521,260.7,132.36,132.26,57.39404199]
[1742393485720,104.641869,132.39,132.28,55.881869]
[1742393485921,55.881869,132.39,132.29,5.50983007]
[1742393486120,55.881869,132.39,132.3,1.51171579]
[1742393486318,7.5557,132.35,132.31,48.72]
[1742393486525,0.05030055,132.34,132.32,1.5656625]
[1742393486926,3.8654,132.4,132.32,1.5114873]
[1742393487127,0.05308567,132.34,132.32,1.56592457]
[1742393487427,7.5539,132.38,132.35,7.5553]
[1742393487626,19.152,132.45,132.36,48.54]
[1742393488023,19.152,132.45,132.36,56.0948]
[1742393488225,4.0521,132.45,132.37,1.51091637]
[1742393488420,0.05575983,132.41,132.39,0.05485772]
[1742393488620,0.05575983,132.41,132.4,48.32]
[1742393488825,3.8742,132.5,132.4,48.32]
[1742393489026,3.8742,132.5,132.4,55.8724]
[1742393489617,3.8742,132.5,132.4,48.32]
[1742393489828,55.881869,132.44,132.37,1.51091637]
[1742393490029,7.5538,132.38,132.37,1.51091637]
[1742393490331,0.05119247,132.39,132.37,1.51091637]
[1742393490529,7.5538,132.38,132.37,1.51091637]
[1742393493331,7.5544,132.37,132.36,1.302e-05]
[1742393498446,260.71119247,132.39,132.36,1.302e-05]
[1742393498741,0.05119247,132.39,132.36,1.302e-05]
[1742393498942,7.5538,132.38,132.36,1.302e-05]
[1742393499243,0.05119247,132.39,132.36,1.302e-05]
[1742393500238,7.5538,132.38,132.36,1.302e-05]
[1742393500440,0.05119247,132.39,132.36,7.55461302]
[1742393500640,0.05119247,132.39,132.36,1.302e-05]
[1742393501744,7.5544,132.37,132.36,1.302e-05]
[1742393502544,0.05119247,132.39,132.36,1.302e-05]
[1742393503047,7.5544,132.37,132.36,1.302e-05]
[1742393503748,109.841869,132.37,132.24,9.49379463]
[1742393503938,55.881869,132.32,132.24,55.87379463]
[1742393504841,0.04934711,132.29,132.27,0.05444656]
[1742393505253,7.5595,132.28,132.27,0.05444656]
[1742393506247,0.04934711,132.29,132.27,46.43444656]
[1742393509851,0.04934711,132.29,132.27,0.05444656]
[1742393510053,7.5595,132.28,132.27,0.05444656]
[1742393512045,63.441369,132.28,132.27,4.656e-05]
[1742393512442,7.5633,132.22,132.2,47.8728593]
[1742393512647,55.881869,132.26,132.2,1.5128593]
[1742393513551,7.563,132.22,132.2,1.5128593]
[1742393513945,7.563,132.22,132.2,1.57083567]
[1742393514454,7.5627,132.23,132.2,1.57083567]
[1742393514751,0.04875813,132.24,132.2,1.57083567]
[1742393515551,7.5635,132.21,132.2,1.57083567]
[1742393519849,0.04875813,132.24,132.2,1.57083567]
[1742393520051,0.04875813,132.24,132.21,45.22]
[1742393520751,260.76,132.29,132.21,45.22]
[1742393520959,260.76,132.29,132.21,101.101869]
[1742393521157,3.8521,132.32,132.21,101.101869]
[1742393521357,7.5578,132.31,132.21,101.101869]
[1742393521671,7.5578,132.31,132.26,7.5603]
[1742393521956,55.881869,132.33,132.27,0.05681582]
[1742393521957,0.04835302,132.3,132.27,0.05681582]
[1742393522255,44.98,132.32,132.27,0.05681582]
[1742393522458,0.05657254,132.3,132.27,0.05681582]
[1742393523057,7.5601,132.28,132.24,35.03681582]
[1742393523259,55.881869,132.3,132.24,35.03681582]
[1742393523450,55.881869,132.3,132.19,8.2593]
[1742393523657,55.881869,132.3,132.19,53.0393]
[1742393523850,55.881869,132.25,132.16,44.74]
[1742393524252,0.05504518,132.22,132.19,0.05738163]
[1742393524657,7.5638,132.21,132.19,0.05738163]
[1742393524955,0.05504518,132.22,132.19,0.05738163]
[1742393525755,7.5641,132.2,132.19,0.05738163]
[1742393525957,0.05504518,132.22,132.19,0.05738163]
[1742393526661,7.5638,132.21,132.19,0.05738163]
[1742393526871,0.05504518,132.22,132.19,0.05738163]
[1742393527158,7.5638,132.21,132.19,0.05738163]
[1742393527364,0.05504518,132.22,132.19,0.05738163]
[1742393527565,0.05504518,132.22,132.2,44.52]
[1742393528070,260.84,132.27,132.2,44.52]
[1742393528463,55.881869,132.26,132.2,44.52]
[1742393528763,7.5635,132.21,132.2,44.52]
[1742393528969,100.301869,132.26,132.14,60.011869]
[1742393529166,0.04961098,132.22,132.19,0.05559507]
[1742393529371,7.5641,132.2,132.19,0.05559507]
[1742393529965,7.5641,132.2,132.19,9.507e-05]
[1742393531059,38.61407134,132.2,132.1,51.8194]
[1742393531258,34.61327134,132.18,132.07,9.49379463]
[1742393531461,34.61327134,132.18,132.08,44.06]
[1742393531663,7.5681,132.13,132.09,7.57]
[1742393532264,0.05086049,132.12,132.1,0.05052231]
[1742393533061,7.5692,132.11,132.1,0.05052231]
[1742393533468,0.05086049,132.12,132.1,0.05052231]
[1742393534670,7.5655,132.18,132.1,0.05052231]
[1742393534871,264.9208,132.2,132.09,44.04]
[1742393535568,264.9208,132.2,132.1,34.61327134]
[1742393535769,0.05089119,132.16,132.13,0.0511296]
[1742393535971,78.35327134,132.24,132.14,43.7]
[1742393536177,260.96,132.25,132.14,78.31327134]
[1742393536377,260.96,132.25,132.14,82.38097134]
[1742393536573,7.5619,132.24,132.2,7.564]
[1742393536777,7.9758,132.26,132.2,43.66]
[1742393536978,7.9758,132.26,132.2,43.64]
[1742393537181,0.04979588,132.24,132.22,0.04853205]
[1742393537779,7.5624,132.23,132.22,0.04853205]
[1742393538173,0.04979588,132.24,132.22,0.04853205]
[1742393538680,7.5624,132.23,132.22,0.04853205]
[1742393539177,7.565,132.19,132.16,43.36]
[1742393539386,34.61327134,132.22,132.16,43.36]
[1742393540283,0.05479633,132.2,132.18,0.05430455]
[1742393540871,7.5647,132.19,132.18,0.05430455]
[1742393541482,34.66806767,132.2,132.13,43.08]
[1742393541673,34.61327134,132.2,132.13,43.08]
[1742393541871,7.5674,132.15,132.13,43.08]
[1742393542374,34.61327134,132.2,132.13,42.96]
[1742393542571,0.05067181,132.15,132.13,0.05130741]
[1742393542771,34.61327134,132.16,132.13,0.05130741]
[1742393542970,7.5675,132.14,132.13,7.41e-06]
[1742393543175,42.18077134,132.14,132.13,7.41e-06]
[1742393543777,7.5714,132.08,132.05,4.2428]
[1742393544180,7.5714,132.08,132.06,42.8]
[1742393544381,3.835,132.13,132.06,42.8]
[1742393544581,3.835,132.13,132.05,4.2428]
[1742393544786,3.835,132.13,132.05,46.9628]
[1742393545083,0.05259695,132.1,132.08,0.04804835]
[1742393545284,7.5704,132.09,132.08,0.04804835]
[1742393545873,0.05259695,132.1,132.08,0.04804835]
[1742393546578,7.5704,132.09,132.08,0.04804835]
[1742393546784,34.66586829,132.1,132.03,42.46]
[1742393546984,34.61327134,132.1,132.03,42.46]
[1742393547184,4.0318,132.09,132.03,42.46]
[1742393547579,4.0318,132.09,132.0,3.832]
[1742393547779,34.61327134,132.06,131.98,60.91038071]
[1742393547978,34.66540617,132.06,132.03,1.447e-05]
[1742393548179,7.5733,132.04,132.03,1.447e-05]
[1742393548379,38.68727134,132.06,131.99,42.36]
[1742393548580,7.5746,132.02,131.99,42.36]
[1742393548879,34.61327134,132.04,131.97,37.97517854]
[1742393549079,34.61327134,132.04,131.97,80.23517854]
[1742393549279,34.61327134,132.04,131.99,0.05735305]
[1742393549280,34.6676791,132.02,131.99,0.05735305]
[1742393549577,17.36104343,132.02,131.99,0.05735305]
[1742393549785,0.05440776,132.02,131.99,0.05735305]
[1742393549978,0.05440776,132.02,131.99,42.25735305]
[1742393550185,7.5751,132.01,131.99,42.25735305]
[1742393550384,0.05440776,132.02,131.99,42.25735305]
[1742393550581,34.6676791,132.02,131.99,0.05735305]
[1742393550881,34.6676791,132.02,131.97,37.97517854]
[1742393551085,0.05440776,132.02,131.97,37.97517854]
[1742393551282,34.61327134,132.01,131.95,42.12]
[1742393551480,34.61327134,132.03,131.96,42.06]
[1742393551883,34.6676582,132.01,131.98,0.05622002]
[1742393552080,34.6676582,132.01,131.96,42.06]
[1742393552275,34.6676582,132.01,131.98,0.05223171]
[1742393552680,7.5761,131.99,131.98,0.05223171]
[1742393553084,7.5757,132.0,131.98,0.05223171]
[1742393553284,38.5664582,132.01,131.98,0.05223171]
[1742393553787,7.5761,131.99,131.98,0.05223171]
[1742393554783,34.61327134,131.99,131.94,42.0]
[1742393555484,38.78337134,131.99,131.94,42.0]
[1742393555681,4.1619,132.0,131.95,7.5784]
[1742393555884,4.1619,132.0,131.96,41.62]
[1742393555885,0.05468999,131.98,131.96,41.62]
[1742393556184,34.61327134,132.05,131.97,7.5773]
[1742393556391,34.61327134,132.05,131.96,41.62]
[1742393556692,269.3435,132.06,132.01,7.5746]
[1742393556889,276.916,132.06,132.02,41.54]
[1742393557081,261.26,132.06,132.02,41.54]
[1742393557281,76.15327134,132.1,132.02,41.54]
[1742393557486,0.05466965,132.05,132.03,0.05002052]
[1742393557682,34.61327134,132.1,132.03,0.05002052]
[1742393557887,0.05115305,132.05,132.03,0.05002052]
[1742393558089,34.61327134,132.08,132.02,41.54]
[1742393558282,0.05746308,132.05,132.03,0.05402999]
[1742393558481,34.61327134,132.04,131.98,41.36]
[1742393558883,34.61327134,132.02,131.98,41.36]
[1742393559083,7.5768,131.98,131.95,41.28]
[1742393559390,34.61327134,132.0,131.95,41.28]
[1742393559788,0.05728674,131.99,131.96,0.05652332]
[1742393560792,7.63378674,131.99,131.96,0.05652332]
[1742393561295,0.05728674,131.99,131.96,0.05652332]
[1742393561890,34.61327134,132.06,131.96,7.63652332]
[1742393562088,34.61327134,132.06,131.99,7.5758]
[1742393562286,34.61327134,132.06,132.0,41.02]
[1742393562592,34.61327134,132.06,132.0,40.98]
[1742393562790,7.5747,132.02,132.0,40.98]
[1742393562994,0.04777886,132.04,132.0,40.98]
[1742393563188,0.04777886,132.04,132.0,41.03335135]
[1742393563385,7.575,132.01,132.0,41.03335135]
[1742393563792,0.04777886,132.04,132.0,41.03335135]
[1742393563995,7.5745,132.02,132.0,41.03335135]
[1742393564392,0.04777886,132.04,132.0,41.03335135]
[1742393565084,7.575,132.01,132.0,41.03335135]
[1742393565887,7.5747,132.02,132.0,41.03335135]
[1742393566092,0.04777886,132.04,132.0,41.03335135]
[1742393567695,7.575,132.01,132.0,41.03335135]
[1742393567896,7.575,132.01,132.0,0.05335135]
[1742393568097,7.5744,132.02,132.0,0.05335135]
[1742393568996,7.575,132.01,132.0,0.05335135]
[1742393569200,0.04777886,132.04,132.0,0.05335135]
[1742393570491,0.04777886,132.04,132.01,40.14]
[1742393570893,7.5741,132.03,132.01,40.14]
[1742393571099,0.04777886,132.04,132.01,40.14]
[1742393572199,7.5743,132.03,132.01,40.14]
[1742393572802,7.5744,132.02,132.01,40.14]
[1742393573303,7.5741,132.03,132.01,40.14]
[1742393573502,0.04777886,132.04,132.01,40.14]
[1742393574095,34.6610502,132.04,132.0,0.05335135]
[1742393574295,7.62127886,132.04,132.01,7.5749]
[1742393574506,0.04777886,132.04,132.0,0.05335135]
[1742393574802,7.62137886,132.04,132.01,7.5749]
[1742393574999,0.04777886,132.04,132.01,7.5749]
[1742393575203,0.04777886,132.04,132.02,39.76]
[1742393575393,7.62137886,132.04,132.02,39.76]
[1742393575800,0.04777886,132.04,132.02,39.76]
[1742393575999,7.5738,132.03,132.02,39.76]
[1742393576197,0.04777886,132.04,132.02,39.76]
[1742393577106,0.04777886,132.04,132.02,47.3343]
[1742393577308,0.04777886,132.04,132.02,39.76]
[1742393577696,7.5738,132.03,132.02,39.76]
[1742393578302,0.04777886,132.04,132.01,39.68]
[1742393578703,0.04777886,132.04,132.02,7.5739]
[1742393579004,0.04777886,132.04,132.01,39.68]
[1742393579307,7.5716,132.07,132.04,7.5729]
[1742393579509,4.1769,132.1,132.05,39.56]
[1742393579707,7.5733,132.04,132.02,39.52]
[1742393579908,38.84277134,132.09,132.02,39.52]
[1742393580305,0.05333339,132.07,132.05,7.5726]
[1742393580500,0.05333339,132.07,132.05,47.0526]
[1742393581012,0.05333339,132.07,132.05,39.48]
[1742393582014,0.05333339,132.07,132.06,7.5721]
[1742393582509,7.5721,132.06,132.05,39.48]
[1742393582716,0.05333339,132.07,132.04,0.0534864]
[1742393583101,7.5727,132.05,132.04,0.0534864]
[1742393583400,0.05333339,132.07,132.04,0.0534864]
[1742393583602,7.5725,132.06,132.04,0.0534864]
[1742393583804,0.05333339,132.07,132.04,0.0534864]
[1742393585010,0.05333339,132.07,132.04,4.2042864]
[1742393585405,7.62523339,132.07,132.04,11.7772864]
[1742393585613,0.05333339,132.07,132.04,4.2042864]
[1742393586115,0.05333339,132.07,132.06,7.5721]
[1742393586316,0.05333339,132.07,132.06,46.6521]
[1742393587017,0.05333339,132.07,132.06,39.08]
[1742393587622,0.05333339,132.07,132.06,46.6521]
[1742393588122,4.0485,132.15,132.06,46.6521]
[1742393588123,7.5676,132.14,132.06,81.27327134]
[1742393588321,4.2167,132.18,132.08,34.61327134]
[1742393588519,4.2167,132.18,132.09,42.8099]
[1742393589018,261.24,132.21,132.1,34.61327134]
[1742393589214,0.05474072,132.15,132.12,0.05094899]
[1742393589418,0.05474072,132.15,132.13,38.84]
[1742393589614,34.61327134,132.18,132.13,38.84]
[1742393589824,7.62357961,132.15,132.13,38.84]
[1742393590023,0.05627961,132.15,132.13,38.84]
[1742393590217,7.5675,132.14,132.13,38.84]
[1742393590423,0.05627961,132.15,132.13,38.84]
[1742393591519,261.24,132.21,132.13,38.84]
[1742393591921,7.5655,132.18,132.14,7.5675]
[1742393592828,0.05339615,132.17,132.15,0.04817214]
[1742393593025,0.05339615,132.17,132.16,38.54]
[1742393593629,38.74217134,132.24,132.16,38.54]
[1742393594229,7.5657,132.18,132.16,38.54]
[1742393594528,38.74217134,132.24,132.16,38.54]
[1742393594722,0.05791422,132.18,132.16,38.58830841]
[1742393594923,38.74217134,132.24,132.16,38.54]
[1742393595124,0.05557021,132.18,132.16,38.59306854]
[1742393595426,295.79327134,132.26,132.16,38.54]
[1742393595628,261.18,132.26,132.17,4.0911]
[1742393595931,34.61327134,132.24,132.17,4.0911]
[1742393596131,34.61327134,132.24,132.18,38.36]
[1742393596333,7.5647,132.19,132.18,38.36]
[1742393596727,34.66174408,132.22,132.18,38.32]
[1742393596929,7.5647,132.19,132.18,38.32]
[1742393597727,7.5652,132.18,132.17,38.29228576]
[1742393597930,7.5652,132.18,132.17,0.05228576]
[1742393598235,34.61327134,132.18,132.14,38.2]
[1742393598630,7.567,132.15,132.14,38.2]
[1742393598823,34.61327134,132.16,132.13,38.16]
[1742393599024,34.61327134,132.18,132.13,38.16]
[1742393599328,0.05744507,132.17,132.14,0.05510954]
[1742393599832,7.5674,132.15,132.14,0.05510954]
[1742393601131,7.5696,132.11,132.1,38.12]
[1742393601330,34.61327134,132.16,132.07,11.6922]
[1742393601536,34.61327134,132.16,132.08,38.1]
[1742393602036,34.61327134,132.14,132.07,4.1209]
[1742393602240,0.05008084,132.13,132.11,0.05478919]
[1742393602434,3.96928084,132.13,132.11,0.05478919]
[1742393602935,0.05008084,132.13,132.11,0.05478919]